[Event "*** MasterClass Titled Tuesday Blitz"]
[Site "Chess.com"]
[Date "2017.07.04"]
[Round "3"]
[White "GM_dmitrij"]
[Black "SipkeErnst"]
[Result "0-1"]
[WhiteElo "2496"]
[BlackElo "2435"]
[TimeControl "180+2"]
[EndTime "13:39:10 PDT"]
[Termination "SipkeErnst won by checkmate"]

1. e4 {[%clk 0:03:01.9]} 1... e5 {[%clk 0:02:59.4]} 2. Nf3 {[%clk 0:03:01.2]}
2... Nc6 {[%clk 0:03:00.8]} 3. Bb5 {[%clk 0:03:02.5]} 3... a6 {[%clk 0:03:01]}
4. Ba4 {[%clk 0:03:03.6]} 4... Nf6 {[%clk 0:03:02.1]} 5. O-O {[%clk 0:03:05]}
5... Be7 {[%clk 0:03:02.6]} 6. d3 {[%clk 0:03:06.3]} 6... b5 {[%clk 0:03:02.2]}
7. Bb3 {[%clk 0:03:07.7]} 7... d6 {[%clk 0:03:02.5]} 8. a3 {[%clk 0:03:08.8]}
8... Na5 {[%clk 0:03:00.5]} 9. Ba2 {[%clk 0:03:09.5]} 9... c5 {[%clk 0:03:01.1]}
10. Nc3 {[%clk 0:03:08.9]} 10... Be6 {[%clk 0:03:00.7]} 11. Nh4 {[%clk
0:03:03.8]} 11... Nc6 {[%clk 0:02:51.7]} 12. Nf5 {[%clk 0:03:03.5]} 12... O-O
{[%clk 0:02:51.1]} 13. Bg5 {[%clk 0:02:38.8]} 13... Bxf5 {[%clk 0:02:02.5]} 14.
exf5 {[%clk 0:02:39]} 14... b4 {[%clk 0:02:03.8]} 15. axb4 {[%clk 0:02:14.3]}
15... cxb4 {[%clk 0:02:03.6]} 16. Nd5 {[%clk 0:02:02.1]} 16... Nxd5 {[%clk
0:02:01.7]} 17. Bxd5 {[%clk 0:02:03.2]} 17... Bxg5 {[%clk 0:01:59.7]} 18. Bxc6
{[%clk 0:02:04.4]} 18... Rb8 {[%clk 0:01:55.2]} 19. Rxa6 {[%clk 0:01:56.6]}
19... Qc8 {[%clk 0:01:55.4]} 20. Qa1 {[%clk 0:01:53.9]} 20... Qxf5 {[%clk
0:01:55]} 21. Qa2 {[%clk 0:01:49]} 21... b3 {[%clk 0:01:51]} 22. cxb3 {[%clk
0:01:44]} 22... Qxd3 {[%clk 0:01:44.9]} 23. Ra3 {[%clk 0:01:08]} 23... Rb4
{[%clk 0:01:44.6]} 24. Ra5 {[%clk 0:00:47.3]} 24... h6 {[%clk 0:01:24.9]} 25.
Rd5 {[%clk 0:00:41.6]} 25... Qc2 {[%clk 0:01:17.5]} 26. Rxd6 {[%clk 0:00:39]}
26... e4 {[%clk 0:01:13.3]} 27. Qb1 {[%clk 0:00:29.1]} 27... Qc5 {[%clk
0:01:06.1]} 28. Rfd1 {[%clk 0:00:27.8]} 28... f5 {[%clk 0:01:05.4]} 29. Bd5+
{[%clk 0:00:21.8]} 29... Kh8 {[%clk 0:01:03.8]} 30. Bc4 {[%clk 0:00:23.7]} 30...
Rb6 {[%clk 0:00:59.5]} 31. R6d5 {[%clk 0:00:20.7]} 31... Qe7 {[%clk 0:00:50]}
32. Qc2 {[%clk 0:00:22]} 32... f4 {[%clk 0:00:44]} 33. Rd7 {[%clk 0:00:21.6]}
33... Qf6 {[%clk 0:00:41.7]} 34. Qxe4 {[%clk 0:00:21.9]} 34... f3 {[%clk
0:00:40.7]} 35. Bd3 {[%clk 0:00:21.2]} 35... g6 {[%clk 0:00:40]} 36. Qxg6 {[%clk
0:00:19.6]} 36... Qxg6 {[%clk 0:00:41]} 37. Bxg6 {[%clk 0:00:21.2]} 37... Rxg6
{[%clk 0:00:41.7]} 38. g3 {[%clk 0:00:20.7]} 38... Re6 {[%clk 0:00:41.4]} 39.
R7d3 {[%clk 0:00:18.8]} 39... Re2 {[%clk 0:00:42]} 40. Rb1 {[%clk 0:00:20.4]}
40... h5 {[%clk 0:00:40.1]} 41. Kf1 {[%clk 0:00:21.6]} 41... Rc2 {[%clk
0:00:39.6]} 42. Rc3 {[%clk 0:00:22.8]} 42... Rd2 {[%clk 0:00:40]} 43. b4 {[%clk
0:00:23.3]} 43... Bd8 {[%clk 0:00:39.9]} 44. Ke1 {[%clk 0:00:22.3]} 44... Re2+
{[%clk 0:00:40]} 45. Kf1 {[%clk 0:00:22.5]} 45... Rd2 {[%clk 0:00:40.3]} 46. Ke1
{[%clk 0:00:23.8]} 46... Rd4 {[%clk 0:00:41.1]} 47. b5 {[%clk 0:00:23.7]} 47...
Ba5 {[%clk 0:00:40.5]} 48. b6 {[%clk 0:00:20.7]} 48... Re8+ {[%clk 0:00:40.4]}
49. Kf1 {[%clk 0:00:21.5]} 49... Bxc3 {[%clk 0:00:41.2]} 50. bxc3 {[%clk
0:00:23.4]} 50... Rd6 {[%clk 0:00:40.1]} 51. c4 {[%clk 0:00:23.4]} 51... Rc6
{[%clk 0:00:38.7]} 52. b7 {[%clk 0:00:13.9]} 52... Rb8 {[%clk 0:00:38.1]} 53.
Rb4 {[%clk 0:00:13.5]} 53... Rc7 {[%clk 0:00:38.3]} 54. Rb3 {[%clk 0:00:14.3]}
54... Rbxb7 {[%clk 0:00:38]} 55. Rxf3 {[%clk 0:00:15.7]} 55... Rf7 {[%clk
0:00:38.2]} 56. Rc3 {[%clk 0:00:16.5]} 56... Rb2 {[%clk 0:00:38.8]} 57. f3
{[%clk 0:00:17.5]} 57... Ra7 {[%clk 0:00:39.6]} 58. c5 {[%clk 0:00:16.3]} 58...
Ra1+ {[%clk 0:00:39.4]} 59. Rc1 {[%clk 0:00:16.5]} 59... Rxc1# {[%clk
0:00:40.2]} 0-1

[Event "*** MasterClass Titled Tuesday Blitz"]
[Site "Chess.com"]
[Date "2017.07.04"]
[Round "3"]
[White "GMKrikor"]
[Black "SuperCheese"]
[Result "1-0"]
[WhiteElo "2471"]
[BlackElo "2409"]
[TimeControl "180+2"]
[EndTime "13:39:21 PDT"]
[Termination "GMKrikor won by resignation"]

1. e4 {[%clk 0:03:01.9]} 1... e5 {[%clk 0:02:59.4]} 2. Nf3 {[%clk 0:03:03]} 2...
Nc6 {[%clk 0:03:00.2]} 3. Bb5 {[%clk 0:03:03.2]} 3... a6 {[%clk 0:03:01.1]} 4.
Ba4 {[%clk 0:03:04.3]} 4... Nf6 {[%clk 0:03:02.6]} 5. O-O {[%clk 0:03:05.6]}
5... Be7 {[%clk 0:03:04.3]} 6. d3 {[%clk 0:03:05.4]} 6... b5 {[%clk 0:03:04.2]}
7. Bb3 {[%clk 0:03:06.9]} 7... O-O {[%clk 0:03:05.6]} 8. a4 {[%clk 0:03:07.7]}
8... b4 {[%clk 0:03:05.9]} 9. a5 {[%clk 0:03:08.8]} 9... d6 {[%clk 0:03:04.7]}
10. Nbd2 {[%clk 0:03:09.5]} 10... Rb8 {[%clk 0:03:02.2]} 11. Bc4 {[%clk
0:03:02.1]} 11... h6 {[%clk 0:02:22.1]} 12. Re1 {[%clk 0:03:02.6]} 12... Nd7
{[%clk 0:02:21.6]} 13. Nf1 {[%clk 0:02:56.7]} 13... Nc5 {[%clk 0:02:20.5]} 14.
Ne3 {[%clk 0:02:52.8]} 14... Kh8 {[%clk 0:02:17.7]} 15. Bd5 {[%clk 0:02:25.8]}
15... Bd7 {[%clk 0:02:05.1]} 16. Nf5 {[%clk 0:02:23.1]} 16... Bf6 {[%clk
0:02:04.7]} 17. Be3 {[%clk 0:02:08.4]} 17... Rb5 {[%clk 0:02:01.7]} 18. Qd2
{[%clk 0:02:04.1]} 18... Ne7 {[%clk 0:01:11.3]} 19. Nxe7 {[%clk 0:01:56.7]}
19... Qxe7 {[%clk 0:01:13.2]} 20. Bc4 {[%clk 0:01:58]} 20... Rbb8 {[%clk
0:01:08.2]} 21. Bxc5 {[%clk 0:01:51.5]} 21... dxc5 {[%clk 0:01:10.1]} 22. Bxa6
{[%clk 0:01:52.6]} 22... Bb5 {[%clk 0:00:56.1]} 23. Bxb5 {[%clk 0:01:51]} 23...
Rxb5 {[%clk 0:00:58]} 24. a6 {[%clk 0:01:35]} 24... Ra8 {[%clk 0:00:58.7]} 25.
Ra4 {[%clk 0:01:19.9]} 25... Ra7 {[%clk 0:00:58.3]} 26. Rea1 {[%clk 0:01:18.9]}
26... Rb6 {[%clk 0:00:55.9]} 27. g3 {[%clk 0:01:05.9]} 27... Qd6 {[%clk
0:00:56]} 28. Qe3 {[%clk 0:01:04.6]} 28... Kh7 {[%clk 0:00:49.4]} 29. h4 {[%clk
0:01:04.6]} 29... g6 {[%clk 0:00:50.4]} 30. Nd2 {[%clk 0:01:02.1]} 30... Rbxa6
{[%clk 0:00:40.5]} 31. Rxa6 {[%clk 0:00:57.8]} 31... Rxa6 {[%clk 0:00:42.4]} 32.
Rxa6 {[%clk 0:00:57.9]} 32... Qxa6 {[%clk 0:00:44.3]} 33. Qxc5 {[%clk
0:00:58.5]} 33... Qa1+ {[%clk 0:00:45.3]} 34. Kg2 {[%clk 0:01:00]} 34... Qxb2
{[%clk 0:00:46]} 35. Qxc7 {[%clk 0:00:59.8]} 35... Kg7 {[%clk 0:00:44]} 36. Nf1
{[%clk 0:00:51.2]} 36... Qd4 {[%clk 0:00:32.2]} 37. Ne3 {[%clk 0:00:46.5]} 37...
Bd8 {[%clk 0:00:33.7]} 38. Qc4 {[%clk 0:00:44.1]} 38... Bb6 {[%clk 0:00:34.4]}
39. Qxd4 {[%clk 0:00:42.2]} 39... Bxd4 {[%clk 0:00:33.9]} 40. Nd5 {[%clk
0:00:43.5]} 40... Bc5 {[%clk 0:00:35.3]} 41. f4 {[%clk 0:00:42.9]} 41... f6
{[%clk 0:00:21.4]} 42. Kf3 {[%clk 0:00:37.8]} 42... h5 {[%clk 0:00:21.8]} 43.
Ne3 {[%clk 0:00:20.4]} 43... Bd4 {[%clk 0:00:19.9]} 44. Nd5 {[%clk 0:00:19]}
44... Bc5 {[%clk 0:00:20.7]} 45. g4 {[%clk 0:00:13.9]} 45... exf4 {[%clk
0:00:14.1]} 46. Nxf4 {[%clk 0:00:13.5]} 46... hxg4+ {[%clk 0:00:15.5]} 47. Kxg4
{[%clk 0:00:14.7]} 47... Kf7 {[%clk 0:00:16.3]} 48. h5 {[%clk 0:00:14.2]} 48...
g5 {[%clk 0:00:15.2]} 49. Nd5 {[%clk 0:00:12.9]} 49... Kg7 {[%clk 0:00:12.4]}
50. Kf5 {[%clk 0:00:14]} 50... Bd4 {[%clk 0:00:10.5]} 51. Nxb4 {[%clk
0:00:13.6]} 51... Kh6 {[%clk 0:00:10.7]} 52. Kg4 {[%clk 0:00:14.9]} 52... Be5
{[%clk 0:00:11.1]} 53. Nd5 {[%clk 0:00:15.6]} 1-0

[Event "*** MasterClass Titled Tuesday Blitz"]
[Site "Chess.com"]
[Date "2017.07.04"]
[Round "3"]
[White "Tonychess32"]
[Black "Whateveriov"]
[Result "1-0"]
[WhiteElo "2455"]
[BlackElo "2673"]
[TimeControl "180+2"]
[EndTime "13:39:22 PDT"]
[Termination "Tonychess32 won by resignation"]

1. e4 {[%clk 0:03:01.9]} 1... c5 {[%clk 0:02:59.3]} 2. Nf3 {[%clk 0:03:02.8]}
2... d6 {[%clk 0:03:00.4]} 3. c3 {[%clk 0:03:04]} 3... Nf6 {[%clk 0:03:01]} 4.
Be2 {[%clk 0:03:05.4]} 4... g6 {[%clk 0:03:01.4]} 5. d3 {[%clk 0:03:06.6]} 5...
Bg7 {[%clk 0:03:02.5]} 6. O-O {[%clk 0:03:07.6]} 6... O-O {[%clk 0:03:03.7]} 7.
h3 {[%clk 0:03:08.7]} 7... Nc6 {[%clk 0:03:04.8]} 8. a4 {[%clk 0:03:09.6]} 8...
e5 {[%clk 0:03:02.6]} 9. Re1 {[%clk 0:03:09.5]} 9... d5 {[%clk 0:03:00.5]} 10.
Qc2 {[%clk 0:03:09]} 10... d4 {[%clk 0:03:00.9]} 11. Nbd2 {[%clk 0:03:09.1]}
11... Be6 {[%clk 0:02:58.6]} 12. Ng5 {[%clk 0:03:06.2]} 12... Bd7 {[%clk
0:02:57.7]} 13. Nc4 {[%clk 0:03:01.4]} 13... Qe7 {[%clk 0:02:58.3]} 14. f4
{[%clk 0:03:00.1]} 14... exf4 {[%clk 0:02:41.6]} 15. Bxf4 {[%clk 0:03:02]} 15...
Ne8 {[%clk 0:02:42.3]} 16. Rf1 {[%clk 0:02:44.7]} 16... h6 {[%clk 0:02:36.8]}
17. Nf3 {[%clk 0:02:42.8]} 17... Be6 {[%clk 0:02:36.8]} 18. Rad1 {[%clk
0:02:39.4]} 18... Rd8 {[%clk 0:02:30.5]} 19. Qc1 {[%clk 0:02:40]} 19... Kh7
{[%clk 0:02:27.1]} 20. e5 {[%clk 0:02:35.4]} 20... Nc7 {[%clk 0:02:17.6]} 21.
Rfe1 {[%clk 0:02:32.6]} 21... Bxc4 {[%clk 0:02:14]} 22. dxc4 {[%clk 0:02:32.8]}
22... Ne6 {[%clk 0:02:15.4]} 23. Bg3 {[%clk 0:02:26.3]} 23... Qc7 {[%clk
0:02:06.7]} 24. Bd3 {[%clk 0:02:27.2]} 24... dxc3 {[%clk 0:02:02.6]} 25. bxc3
{[%clk 0:02:28.4]} 25... Na5 {[%clk 0:01:37.5]} 26. Qc2 {[%clk 0:02:24.4]} 26...
Qb6 {[%clk 0:01:27.4]} 27. Rb1 {[%clk 0:02:23]} 27... Qc6 {[%clk 0:01:21.2]} 28.
Be4 {[%clk 0:02:22]} 28... Qe8 {[%clk 0:01:18.7]} 29. h4 {[%clk 0:02:23.2]}
29... b6 {[%clk 0:01:15]} 30. h5 {[%clk 0:02:18.4]} 30... Rg8 {[%clk 0:01:06.5]}
31. Nh4 {[%clk 0:02:14.2]} 31... Bh8 {[%clk 0:01:06]} 32. hxg6+ {[%clk
0:02:04.4]} 32... fxg6 {[%clk 0:01:07.9]} 33. Rf1 {[%clk 0:01:53.4]} 33... Nxc4
{[%clk 0:01:03.8]} 34. Rbe1 {[%clk 0:01:48.7]} 34... Nd2 {[%clk 0:01:02]} 35.
Bxg6+ {[%clk 0:01:45.9]} 35... Rxg6 {[%clk 0:01:01.4]} 36. Nxg6 {[%clk
0:01:12.7]} 36... Qxg6 {[%clk 0:01:01.6]} 37. Rf7+ {[%clk 0:01:13.1]} 37... Bg7
{[%clk 0:01:00.4]} 38. Qxg6+ {[%clk 0:01:11.8]} 38... Kxg6 {[%clk 0:01:02.3]}
39. Rxa7 {[%clk 0:01:07.7]} 39... Nc4 {[%clk 0:01:02.5]} 40. Re4 {[%clk
0:01:03.9]} 40... Na5 {[%clk 0:00:56.5]} 41. Rg4+ {[%clk 0:01:02.7]} 41... Ng5
{[%clk 0:00:55.2]} 42. Ra6 {[%clk 0:00:59.9]} 42... Rb8 {[%clk 0:00:54.3]} 43.
e6 {[%clk 0:00:58.4]} 43... Rb7 {[%clk 0:00:51.2]} 44. e7 {[%clk 0:00:58.8]}
44... Kf7 {[%clk 0:00:47.3]} 45. Bd6 {[%clk 0:00:53.2]} 45... Bf6 {[%clk
0:00:34.8]} 46. Rf4 {[%clk 0:00:54.4]} 46... Nh7 {[%clk 0:00:35.5]} 47. Ra8
{[%clk 0:00:52.6]} 47... Rxe7 {[%clk 0:00:36]} 48. Bxe7 {[%clk 0:00:50.3]} 48...
Kxe7 {[%clk 0:00:37.9]} 49. Ra7+ {[%clk 0:00:51.5]} 49... Ke6 {[%clk 0:00:37.2]}
50. Rxh7 {[%clk 0:00:53.4]} 50... Bxc3 {[%clk 0:00:37.3]} 51. Rxh6+ {[%clk
0:00:53.8]} 51... Ke5 {[%clk 0:00:38.4]} 52. Rg4 {[%clk 0:00:48.3]} 52... Bd4+
{[%clk 0:00:36.1]} 53. Kf1 {[%clk 0:00:48.7]} 53... Nc4 {[%clk 0:00:32.2]} 54.
Rh5+ {[%clk 0:00:48.5]} 54... Ke6 {[%clk 0:00:33.3]} 55. Ke2 {[%clk 0:00:47.4]}
55... Nb2 {[%clk 0:00:29]} 56. Rg6+ {[%clk 0:00:45.8]} 56... Kf7 {[%clk
0:00:29.9]} 57. Rxb6 {[%clk 0:00:46.4]} 57... Nxa4 {[%clk 0:00:31.4]} 58. Ra6
{[%clk 0:00:44.7]} 58... Nc3+ {[%clk 0:00:31.2]} 59. Kd3 {[%clk 0:00:45.6]}
59... Nd1 {[%clk 0:00:32]} 60. Rh7+ {[%clk 0:00:45.4]} 60... Kg8 {[%clk
0:00:31.6]} 61. Rb7 {[%clk 0:00:45.8]} 1-0

[Event "*** MasterClass Titled Tuesday Blitz"]
[Site "Chess.com"]
[Date "2017.07.04"]
[Round "3"]
[White "Msb2"]
[Black "OparinGrigoriy"]
[Result "1/2-1/2"]
[WhiteElo "2533"]
[BlackElo "2752"]
[TimeControl "180+2"]
[EndTime "13:39:31 PDT"]
[Termination "Game drawn by repetition"]

1. d4 {[%clk 0:03:01.9]} 1... Nf6 {[%clk 0:03:00.6]} 2. c4 {[%clk 0:03:02.5]}
2... e6 {[%clk 0:03:02.1]} 3. g3 {[%clk 0:03:01.2]} 3... d5 {[%clk 0:03:02.5]}
4. Bg2 {[%clk 0:03:02.4]} 4... Bb4+ {[%clk 0:03:03.2]} 5. Nd2 {[%clk 0:03:03.3]}
5... O-O {[%clk 0:03:02.3]} 6. Nf3 {[%clk 0:03:04.5]} 6... b6 {[%clk 0:03:01.6]}
7. O-O {[%clk 0:03:05.2]} 7... Bb7 {[%clk 0:03:02.9]} 8. a3 {[%clk 0:03:05.6]}
8... Be7 {[%clk 0:03:01]} 9. cxd5 {[%clk 0:03:06.9]} 9... exd5 {[%clk
0:03:01.5]} 10. b4 {[%clk 0:03:08.6]} 10... c6 {[%clk 0:02:58.9]} 11. Ne5 {[%clk
0:02:45.7]} 11... Nbd7 {[%clk 0:02:55.6]} 12. Bb2 {[%clk 0:02:46.1]} 12... b5
{[%clk 0:02:48.6]} 13. e4 {[%clk 0:02:41.3]} 13... Nb6 {[%clk 0:02:49.3]} 14.
Nd3 {[%clk 0:02:32.9]} 14... dxe4 {[%clk 0:02:44.7]} 15. Nxe4 {[%clk 0:02:32.8]}
15... Nxe4 {[%clk 0:02:45.1]} 16. Bxe4 {[%clk 0:02:34.7]} 16... Na4 {[%clk
0:02:44.9]} 17. Qc2 {[%clk 0:02:25.8]} 17... Bf6 {[%clk 0:02:29]} 18. Ne5 {[%clk
0:02:18.4]} 18... Nxb2 {[%clk 0:02:13.4]} 19. Qxb2 {[%clk 0:02:19.2]} 19... Qd6
{[%clk 0:02:15]} 20. Rac1 {[%clk 0:02:16.2]} 20... Rac8 {[%clk 0:02:10.8]} 21.
Rfd1 {[%clk 0:02:12.9]} 21... Rfd8 {[%clk 0:01:59.1]} 22. Qc2 {[%clk 0:01:41.4]}
22... g6 {[%clk 0:01:43.1]} 23. Qc5 {[%clk 0:01:03.5]} 23... Qxc5 {[%clk
0:01:14.3]} 24. Rxc5 {[%clk 0:01:05.4]} 24... Bxe5 {[%clk 0:01:15.6]} 25. Rxe5
{[%clk 0:01:05.6]} 25... Kf8 {[%clk 0:01:14]} 26. f4 {[%clk 0:00:59.6]} 26...
Rd6 {[%clk 0:01:04.4]} 27. Rc5 {[%clk 0:00:36.3]} 27... Re8 {[%clk 0:00:31]} 28.
Bg2 {[%clk 0:00:34.4]} 28... Re3 {[%clk 0:00:28.2]} 29. a4 {[%clk 0:00:22.3]}
29... a6 {[%clk 0:00:22.4]} 30. axb5 {[%clk 0:00:20.2]} 30... axb5 {[%clk
0:00:25]} 31. d5 {[%clk 0:00:20.3]} 31... Rb3 {[%clk 0:00:25.7]} 32. Rdc1 {[%clk
0:00:19.6]} 32... cxd5 {[%clk 0:00:22]} 33. Rxb5 {[%clk 0:00:20.7]} 33... Ba6
{[%clk 0:00:27.1]} 34. Rb8+ {[%clk 0:00:18.6]} 34... Kg7 {[%clk 0:00:27.1]} 35.
Rd1 {[%clk 0:00:13.8]} 35... d4 {[%clk 0:00:27.6]} 36. Bf1 {[%clk 0:00:12.6]}
36... d3 {[%clk 0:00:28.3]} 37. Rd2 {[%clk 0:00:12.3]} 37... Rc6 {[%clk
0:00:22.1]} 38. Kf2 {[%clk 0:00:13]} 38... Rc1 {[%clk 0:00:20.9]} 39. Rb6 {[%clk
0:00:12]} 39... Rbb1 {[%clk 0:00:20.4]} 40. Rxa6 {[%clk 0:00:13.3]} 40... Rxf1+
{[%clk 0:00:21.1]} 41. Kg2 {[%clk 0:00:15.2]} 41... Rg1+ {[%clk 0:00:19.8]} 42.
Kh3 {[%clk 0:00:16]} 42... Rxb4 {[%clk 0:00:19.9]} 43. Rxd3 {[%clk 0:00:17.5]}
43... Rb5 {[%clk 0:00:20.6]} 44. g4 {[%clk 0:00:13]} 44... h5 {[%clk 0:00:19.5]}
45. Rg3 {[%clk 0:00:14]} 45... hxg4+ {[%clk 0:00:20.2]} 46. Kxg4 {[%clk
0:00:15.9]} 46... Rf1 {[%clk 0:00:19]} 47. Ra4 {[%clk 0:00:15.6]} 47... Rh5
{[%clk 0:00:19]} 48. h4 {[%clk 0:00:15.5]} 48... f5+ {[%clk 0:00:18.2]} 49. Kh3
{[%clk 0:00:16.9]} 49... Rh1+ {[%clk 0:00:19.8]} 50. Kg2 {[%clk 0:00:18.4]}
50... R5xh4 {[%clk 0:00:21.7]} 51. Ra7+ {[%clk 0:00:18.6]} 51... Kh6 {[%clk
0:00:22.9]} 52. Ra6 {[%clk 0:00:20.1]} 52... R4h2+ {[%clk 0:00:23.4]} 53. Kf3
{[%clk 0:00:21.6]} 53... Rf1+ {[%clk 0:00:23.2]} 54. Ke3 {[%clk 0:00:23.1]}
54... Re1+ {[%clk 0:00:23.9]} 55. Kf3 {[%clk 0:00:24.6]} 55... Rf1+ {[%clk
0:00:21.3]} 56. Ke3 {[%clk 0:00:25.8]} 56... Re1+ {[%clk 0:00:22.9]} 57. Kf3
{[%clk 0:00:27.2]} 57... Rf1+ {[%clk 0:00:21.9]} 58. Ke3 {[%clk 0:00:28.6]}
1/2-1/2

[Event "*** MasterClass Titled Tuesday Blitz"]
[Site "Chess.com"]
[Date "2017.07.04"]
[Round "3"]
[White "kleinebeer98"]
[Black "grobesk"]
[Result "1-0"]
[WhiteElo "2439"]
[BlackElo "2217"]
[TimeControl "180+2"]
[EndTime "13:39:51 PDT"]
[Termination "kleinebeer98 won by resignation"]

1. e4 {[%clk 0:03:01.9]} 1... e5 {[%clk 0:03:00.4]} 2. Nf3 {[%clk 0:03:02.3]}
2... Nf6 {[%clk 0:03:01.2]} 3. Nc3 {[%clk 0:03:02.7]} 3... Nc6 {[%clk
0:03:01.3]} 4. h3 {[%clk 0:03:04]} 4... Bb4 {[%clk 0:02:59]} 5. Bd3 {[%clk
0:03:03.1]} 5... d6 {[%clk 0:02:33.1]} 6. O-O {[%clk 0:03:01.2]} 6... O-O {[%clk
0:02:26.1]} 7. Re1 {[%clk 0:02:58.9]} 7... a6 {[%clk 0:02:19.5]} 8. Bf1 {[%clk
0:02:59.7]} 8... Bc5 {[%clk 0:02:10.2]} 9. d3 {[%clk 0:02:55]} 9... Nd4 {[%clk
0:01:47]} 10. Bg5 {[%clk 0:02:47.8]} 10... c6 {[%clk 0:01:45.3]} 11. Nxd4 {[%clk
0:02:39.6]} 11... Bxd4 {[%clk 0:01:46.2]} 12. Qf3 {[%clk 0:02:39.5]} 12... Bxc3
{[%clk 0:01:47.2]} 13. bxc3 {[%clk 0:02:39.9]} 13... h6 {[%clk 0:01:48.7]} 14.
Bh4 {[%clk 0:02:35.1]} 14... g5 {[%clk 0:01:48.6]} 15. Bg3 {[%clk 0:02:35.6]}
15... Kg7 {[%clk 0:01:20.6]} 16. d4 {[%clk 0:02:33.4]} 16... Qe7 {[%clk
0:01:19.8]} 17. h4 {[%clk 0:02:27.8]} 17... Bg4 {[%clk 0:01:15]} 18. Qe3 {[%clk
0:02:25.6]} 18... Nh5 {[%clk 0:01:15.4]} 19. Bh2 {[%clk 0:02:15.9]} 19... Nf4
{[%clk 0:01:04]} 20. Rab1 {[%clk 0:02:02.3]} 20... Rad8 {[%clk 0:00:53.9]} 21.
Rb6 {[%clk 0:01:59.8]} 21... Rd7 {[%clk 0:00:46]} 22. Reb1 {[%clk 0:01:49.1]}
22... Kh7 {[%clk 0:00:23.1]} 23. Bd3 {[%clk 0:01:41.5]} 23... f6 {[%clk
0:00:23.5]} 24. a4 {[%clk 0:01:38.7]} 24... Rg8 {[%clk 0:00:22.6]} 25. hxg5
{[%clk 0:01:19.7]} 25... hxg5 {[%clk 0:00:21.7]} 26. a5 {[%clk 0:01:15.3]} 26...
Kg6 {[%clk 0:00:20.8]} 27. Qg3 {[%clk 0:00:48.2]} 27... Be6 {[%clk 0:00:18.4]}
28. d5 {[%clk 0:00:49.2]} 28... cxd5 {[%clk 0:00:08.7]} 29. exd5+ {[%clk
0:00:51.1]} 29... Bf5 {[%clk 0:00:10]} 30. Bxf5+ {[%clk 0:00:50.2]} 30... Kxf5
{[%clk 0:00:11.9]} 31. Qf3 {[%clk 0:00:48.9]} 31... Kg6 {[%clk 0:00:11.5]} 32.
Bxf4 {[%clk 0:00:46.4]} 32... gxf4 {[%clk 0:00:12]} 33. Qg4+ {[%clk 0:00:44.6]}
33... Kf7 {[%clk 0:00:11.6]} 34. Qxd7 {[%clk 0:00:45.4]} 34... Qxd7 {[%clk
0:00:11]} 35. Rxb7 {[%clk 0:00:47.3]} 35... Rd8 {[%clk 0:00:11.2]} 36. f3 {[%clk
0:00:43.3]} 36... f5 {[%clk 0:00:08.9]} 37. Kf2 {[%clk 0:00:42.5]} 37... e4
{[%clk 0:00:08.3]} 38. Rxd7+ {[%clk 0:00:42.1]} 38... Rxd7 {[%clk 0:00:07.7]}
39. Rb4 {[%clk 0:00:44]} 39... Re7 {[%clk 0:00:03.9]} 40. Rb6 {[%clk 0:00:44.4]}
40... Kf6 {[%clk 0:00:03.9]} 41. Rxd6+ {[%clk 0:00:41.2]} 41... Ke5 {[%clk
0:00:05.8]} 42. Rxa6 {[%clk 0:00:36.1]} 42... Kxd5 {[%clk 0:00:04.9]} 43. Rf6
{[%clk 0:00:34.2]} 43... Ke5 {[%clk 0:00:04.8]} 44. Rb6 {[%clk 0:00:34.4]} 44...
Rc7 {[%clk 0:00:05]} 45. Rb5+ {[%clk 0:00:30.6]} 45... Ke6 {[%clk 0:00:05]} 46.
Rb3 {[%clk 0:00:26.5]} 46... Rc5 {[%clk 0:00:03.9]} 47. Ra3 {[%clk 0:00:25.8]}
47... e3+ {[%clk 0:00:02.4]} 48. Ke2 {[%clk 0:00:26.1]} 48... Rc8 {[%clk
0:00:02.1]} 49. a6 {[%clk 0:00:26.8]} 49... Ra8 {[%clk 0:00:02.5]} 50. g3 {[%clk
0:00:25.8]} 50... fxg3 {[%clk 0:00:02.6]} 51. Kxe3 {[%clk 0:00:27.7]} 51... Ke5
{[%clk 0:00:02.8]} 52. f4+ {[%clk 0:00:25.5]} 52... Kd5 {[%clk 0:00:03.6]} 53.
Kf3 {[%clk 0:00:27.3]} 53... Kc6 {[%clk 0:00:01.9]} 54. Kxg3 {[%clk 0:00:27.9]}
54... Kb6 {[%clk 0:00:02.7]} 55. a7 {[%clk 0:00:28.8]} 55... Rxa7 {[%clk
0:00:02.6]} 56. Rxa7 {[%clk 0:00:29]} 56... Kxa7 {[%clk 0:00:04.5]} 57. Kh4
{[%clk 0:00:30.9]} 57... Kb6 {[%clk 0:00:06.4]} 58. Kg5 {[%clk 0:00:32.7]} 58...
Kc5 {[%clk 0:00:08.3]} 1-0